fUSD/lending_fUSD_20240223
["ID","MTS","AMOUNT","RATE_DAILY","PERIOD"]
[314985608,1708715488369,-201.0,0.0003535,2]
[314985609,1708715488380,-201.0,0.0003535,2]
[314985610,1708715488389,-207.0,0.0003535,2]
[314985611,1708715488399,-153.50007692,0.00035359,7]
[314985612,1708715488408,-210.0,0.0003536,2]
[314985613,1708715488418,-154.07502588,0.00035362,7]
[314985614,1708715488427,-573.11929172,0.00035372,7]
[314985615,1708715488436,-160.99615301,0.00035373,7]
[314985616,1708715488446,-162.29119658,0.00035374,7]
[314985617,1708715488455,-2542.28799787,0.00035377,2]
[314985618,1708715488465,-2554.3813699,0.00035377,2]
[314985619,1708715488475,-159.69428409,0.00035382,7]
[314985620,1708715488484,-217.0,0.0003539,2]
[314985621,1708715488494,-216.0,0.0003539,2]
[314985622,1708715488504,-1314.14506351,0.00035397,7]
[314985623,1708715488514,-155.57626889,0.00035417,7]
[314985624,1708715488524,-1314.14506351,0.00035439,7]
[314985625,1708715488533,-10984.046,0.0003544,3]
[314985626,1708715488543,-573.11929172,0.0003544,7]
[314985627,1708715488552,-31406.2489394,0.00035444,5]
[314985628,1708715488562,-573.11929172,0.00035446,7]
[314985629,1708715488571,-150.03630934,0.00035451,2]
[314985630,1708715488580,-155.0,0.0003546,2]
[314985631,1708715488590,-500.0,0.00035464,2]
[314985632,1708715488600,-150.0,0.00035472,2]
[314985633,1708715488610,-6000.0,0.0003549,2]
[314985634,1708715488619,-1000.0,0.000355,7]
[314985635,1708715488629,-561.0,0.000355,6]
[314985636,1708715488638,-694.3077609,0.000355,2]
[314985637,1708715488647,-2004.4378854,0.000355,10]
[314985638,1708715488657,-3140.0,0.000355,7]
[314985639,1708715488666,-156.097128,0.00035515,2]
[314985640,1708715488675,-3177.767954,0.00035515,2]
[314985641,1708715488685,-260.95699805,0.00035518,2]
[314985642,1708715488695,-167.02514083,0.00035541,7]
[314985643,1708715488704,-151.54644394,0.00035545,7]
[314985644,1708715488713,-1314.14506351,0.00035551,7]
[314985645,1708715488723,-1314.14506351,0.00035568,7]
[314985646,1708715488733,-573.11929172,0.00035578,7]
[314985647,1708715488742,-573.11929172,0.00035586,7]
[314985648,1708715488752,-40301.560729,0.00035589,2]
[314985649,1708715488762,-206.85395485,0.00035591,7]
[314985650,1708715488771,-15931.69225106,0.000356,2]
[314985651,1708715488780,-784.37,0.000356,6]
[314985652,1708715488791,-2250.0,0.000356,2]
[314985653,1708715488801,-2000.0,0.000356,2]
[314985654,1708715488811,-150.1,0.000356,2]
[314985655,1708715488821,-8000.0,0.000356,2]
[314985656,1708715488830,-151.4959187,0.00035609,7]
[314985657,1708715488840,-500.0,0.00035616,4]
[314985658,1708715488850,-500.0,0.00035616,4]
[314985659,1708715488859,-500.0,0.00035616,2]
[314985660,1708715488870,-500.0,0.00035616,2]
[314985661,1708715488882,-500.0,0.00035616,2]
[314985662,1708715488892,-500.0,0.00035616,2]
[314985663,1708715488901,-500.0,0.00035616,2]
[314985664,1708715488911,-500.0,0.00035616,2]
[314985665,1708715488922,-500.0,0.00035616,2]
[314985666,1708715488931,-500.0,0.00035616,2]
[314985667,1708715488941,-500.0,0.00035616,2]
[314985668,1708715488952,-500.0,0.00035616,2]
[314985669,1708715488962,-500.0,0.00035616,2]
[314985670,1708715488971,-500.0,0.00035616,2]
[314985671,1708715488980,-500.0,0.00035616,2]
[314985672,1708715488991,-500.0,0.00035616,2]
[314985673,1708715489001,-500.0,0.00035616,2]
[314985674,1708715489011,-500.0,0.00035616,2]
[314985675,1708715489020,-500.0,0.00035616,2]
[314985676,1708715489030,-500.0,0.00035616,2]
[314985677,1708715489039,-500.0,0.00035616,2]
[314985678,1708715489048,-1000.0,0.00035616,5]
[314985679,1708715489057,-1000.0,0.00035616,5]
[314985680,1708715489066,-1000.0,0.00035616,5]
[314985681,1708715489076,-1000.0,0.00035616,5]
[314985682,1708715489085,-1000.0,0.00035616,5]
[314985683,1708715489095,-1000.0,0.00035616,5]
[314985684,1708715489104,-404.0,0.00035616,5]
[314985685,1708715489113,-366.0,0.00035616,5]
[314985686,1708715489123,-8245.25,0.00035616,2]
[314985687,1708715489132,-155.0,0.00035617,2]
[314985688,1708715489142,-166.99392,0.00035628,4]
[314985689,1708715489151,-573.11929172,0.00035629,7]
[314985690,1708715489160,-10676.634,0.0003564,4]
[314985691,1708715489170,-10676.634,0.0003564,4]
[314985692,1708715489180,-10676.634,0.0003564,4]
[314985693,1708715489189,-10676.635,0.0003564,4]
[314985694,1708715489198,-10676.634,0.0003564,4]
[314985695,1708715489208,-155.14487319,0.00035671,7]
[314985696,1708715489218,-13998.81,0.000357,7]
[314985697,1708715489227,-198993.46596613,0.000357,4]
[314985698,1708715489236,-16449.73523642,0.000357,2]
[314985699,1708715489245,-13603.67,0.000357,7]
[314985700,1708715489255,-10044.05,0.000357,7]
[314985701,1708715489264,-1314.14506351,0.00035706,7]
[314985702,1708715489273,-154.02083892,0.00035712,7]
[314985703,1708715489282,-150.03630934,0.00035717,2]
[314985704,1708715489293,-500.0,0.00035726,10]
[314985705,1708715489303,-153.74027559,0.00035729,7]
[314985706,1708715489312,-921.76993555,0.00035731,2]
[314985707,1708715489321,-3000.0,0.00035748,30]
[314985708,1708715489330,-152.0,0.00035749,14]
[314985709,1708715489340,-160.0,0.0003576,7]
[314985710,1708715489351,-1213.77329886,0.0003576,7]
[314985711,1708715489361,-154.07502588,0.0003576,7]
[314985712,1708715489370,-500.0,0.00035769,2]
[314985713,1708715489380,-158.00337687,0.00035771,7]
[314985714,1708715489389,-159.87929936,0.00035775,7]
[314985715,1708715489399,-10000.0,0.00035798,2]
[314985716,1708715489408,-14198.88083573,0.000358,2]
[314985717,1708715489417,-13603.67,0.000358,7]
[314985718,1708715489427,-260.95699805,0.00035803,2]
[314985719,1708715489437,-157.0837495,0.00035803,7]
[314985720,1708715489446,-153.50007696,0.00035803,7]
[314985721,1708715489456,-159.69428412,0.00035805,7]
[314985722,1708715489466,-153.31768893,0.00035812,7]
[314985723,1708715489476,-5800.0,0.00035831,2]
[314985724,1708715489486,-156.57354397,0.00035835,7]
[314985725,1708715489496,-5800.0,0.00035839,2]
[314985726,1708715489506,-155.59752133,0.00035839,7]
[314985727,1708715489516,-153.31768893,0.00035841,7]
[314985728,1708715489526,-5800.0,0.00035847,2]
[314985729,1708715489536,-5800.0,0.00035856,2]
[314985730,1708715489545,-5800.0,0.00035865,2]
[314985731,1708715489555,-5800.0,0.00035873,2]
[314985732,1708715489565,-155.59752145,0.00035876,7]
[314985733,1708715489575,-5800.0,0.00035882,2]
[314985734,1708715489584,-500.0,0.0003589,4]
[314985735,1708715489594,-500.0,0.0003589,4]
[314985736,1708715489604,-5588.96998841,0.0003589,2]
[314985737,1708715489613,-40728.39697184,0.0003589,3]
[314985738,1708715489623,-5800.0,0.0003589,2]
[314985739,1708715489632,-441.87066723,0.000359,2]
[314985740,1708715489642,-13603.67,0.000359,7]
[314985741,1708715489651,-10044.05,0.000359,7]
[314985742,1708715489660,-1044.28419,0.000359,4]
[314985743,1708715489670,-175.29577819,0.000359,2]
[314985744,1708715489679,-200.0,0.000359,9]
[314985745,1708715489688,-4952.46101687,0.000359,2]
[314985746,1708715489698,-31052.72504961,0.000359,2]
[314985747,1708715489708,-150.0,0.00035905,2]
[314985748,1708715489718,-312.44,0.00035905,2]
[314985749,1708715489727,-3979.44780403,0.0003591,5]
[314985750,1708715489737,-500.0,0.00035921,2]
[314985751,1708715489746,-1208.0,0.00035926,30]
[314985752,1708715489756,-1213.77329886,0.00035938,7]
[314985753,1708715489766,-156.097128,0.00035943,2]
[314985754,1708715489775,-3177.767954,0.00035943,2]
[314985755,1708715489785,-154.98329938,0.00035958,7]
[314985756,1708715489795,-1314.14506358,0.00035969,7]
[314985757,1708715489804,-400.0,0.0003597,2]
[314985758,1708715489813,-2759.0977523,0.00035975,2]
[314985759,1708715489823,-150.03630934,0.00035982,2]
[314985760,1708715489832,-1062.58235876,0.00035997,7]
[314985761,1708715489841,-3000.0,0.00036,4]
[314985762,1708715489852,-300.0,0.00036,12]
[314985763,1708715489862,-9752.53541659,0.00036,7]
[314985764,1708715489877,-2000.0,0.00036,10]
[314985765,1708715489886,-1000.0,0.00036,5]
[314985766,1708715489896,-2036979.29237306,0.00036,2]
[314985767,1708715489907,-13998.81,0.00036,7]
[314985768,1708715489916,-2173.26464494,0.00036,4]
[314985769,1708715489925,-22706.90620388,0.00036,7]
[314985770,1708715489935,-6327.71328244,0.00036,30]
[314985771,1708715489945,-2173.0,0.00036,30]
[314985772,1708715489955,-1000.0,0.00036,4]
[314985773,1708715489965,-5000.0,0.00036,4]
[314985774,1708715489974,-5000.0,0.00036,4]
[314985775,1708715489984,-5000.0,0.00036,4]
[314985776,1708715489993,-500.0,0.00036,2]
[314985777,1708715490003,-900.0,0.00036,37]
[314985778,1708715490012,-13603.67,0.00036,7]
[314985779,1708715490021,-2567.0,0.00036,3]
[314985780,1708715490031,-217.0,0.00036,2]
[314985781,1708715490040,-216.0,0.00036,2]
[314985782,1708715490049,-214.0,0.00036,2]
[314985783,1708715490058,-3766.52219596,0.00036,10]
[314985784,1708715490068,-444.0,0.00036,2]
[314985785,1708715490077,-213.0,0.00036,2]
[314985786,1708715490086,-250.0,0.00036,4]
[314985787,1708715490097,-250.0,0.00036,4]
[314985788,1708715490106,-250.0,0.00036,4]
[314985789,1708715490115,-250.0,0.00036,4]
[314985790,1708715490125,-250.0,0.00036,4]
[314985791,1708715490135,-263.3,0.00036,4]
[314985792,1708715490144,-1140223.10421792,0.00036,2]
[314985793,1708715490154,-5000.0,0.00036,10]
[314985794,1708715490163,-250.0,0.00036,4]
[314985795,1708715490172,-250.0,0.00036,4]
[314985796,1708715490182,-224.0,0.00036,2]
[314985797,1708715490191,-210.0,0.00036,2]
[314985798,1708715490201,-208.0,0.00036,2]
[314985799,1708715490210,-208.0,0.00036,2]
[314985800,1708715490220,-201.0,0.00036,2]
[314985801,1708715490286,-208.0,0.00036,2]
[314985802,1708715490297,-250.0,0.00036,2]
[314985803,1708715490306,-208.0,0.00036,2]
[314985804,1708715490315,-201.0,0.00036,2]
[314985805,1708715490325,-207.0,0.00036,2]
[314985806,1708715490334,-238.0,0.00036,2]
[314985807,1708715490345,-208.0,0.00036,2]
[314985808,1708715490354,-238.0,0.00036,2]
[314985809,1708715490363,-208.0,0.00036,2]
[314985810,1708715490372,-202.0,0.00036,2]
[314985811,1708715490381,-207.0,0.00036,2]
[314985812,1708715490391,-2718.68989026,0.00036,2]
[314985813,1708715490400,-238.908155,0.00036,4]
[314985814,1708715490409,-1994.787174,0.00036,4]
[314985815,1708715490420,-452.49661701,0.00036,10]
[314985816,1708715490429,-151.54644402,0.00036005,7]
[314985817,1708715490439,-500.0,0.00036073,2]
[314985818,1708715490449,-260.95699805,0.00036088,2]
[314985819,1708715490459,-154.07502595,0.00036093,7]
[314985820,1708715490468,-10044.05,0.000361,7]
[314985821,1708715490478,-573.11929191,0.000361,7]
[314985822,1708715490487,-154.9832994,0.00036105,7]
[314985823,1708715490496,-1213.77329888,0.00036123,7]
[314985824,1708715490507,-159.29487324,0.00036136,7]
[314985825,1708715490517,-1062.58235894,0.00036144,7]
[314985826,1708715490526,-206.85395504,0.0003616,7]
[314985827,1708715490535,-500.0,0.00036164,4]
[314985828,1708715490545,-500.0,0.00036164,4]
[314985829,1708715490554,-224.15,0.00036164,2]
[314985830,1708715490563,-8488.47132509,0.00036174,2]
[314985831,1708715490572,-2000.0,0.000362,2]
[314985832,1708715490581,-500.0,0.00036225,2]
[314985833,1708715490591,-172.0,0.00036247,2]
[314985834,1708715490602,-150.03630934,0.00036247,2]
[314985835,1708715490611,-249.0,0.0003626,7]
[314985836,1708715490621,-500.0,0.00036274,10]
[314985837,1708715490630,-500.0,0.00036274,10]
[314985838,1708715490639,-13998.81,0.000363,7]
[314985839,1708715490648,-10044.05,0.000363,7]
[314985840,1708715490657,-2116.34460378,0.00036301,30]
[314985841,1708715490667,-2048.69,0.00036325,2]
[314985842,1708715490676,-150.0,0.00036337,2]
[314985843,1708715490690,-1831.49645,0.00036356,2]
[314985844,1708715490699,-260.95699805,0.00036373,2]
[314985845,1708715490709,-500.0,0.00036377,2]
[314985846,1708715490718,-5013.18,0.0003638,2]
[314985847,1708715490728,-165.0,0.00036383,2]
[314985848,1708715490737,-152.0,0.00036391,15]
[314985849,1708715490746,-500.0,0.00036438,4]
[314985850,1708715490755,-500.0,0.00036438,4]
[314985851,1708715490764,-164.49,0.00036438,2]
[314985852,1708715490774,-164.49,0.00036438,16]
[314985853,1708715490783,-164.49,0.00036438,31]
[314985854,1708715490792,-164.49,0.00036438,46]
[314985855,1708715490802,-164.49,0.00036438,60]
[314985856,1708715490810,-164.49,0.00036438,75]
[314985857,1708715490820,-164.49,0.00036438,90]
[314985858,1708715490829,-150.0,0.00036482,2]
[314985859,1708715490838,-43477.57555521,0.000365,4]
[314985860,1708715490848,-5000.0,0.000365,10]
[314985861,1708715490858,-150.03630934,0.00036512,2]
[314985862,1708715490867,-500.0,0.0003653,2]
[314985863,1708715490880,-312.44,0.0003654,2]
[314985864,1708715490890,-1167.88,0.00036555,2]
[314985865,1708715490900,-5013.18,0.0003656,2]
[314985866,1708715490910,-13998.81,0.000366,7]
[314985867,1708715490919,-260.95699805,0.00036658,2]
[314985868,1708715490928,-352.5860496,0.0003668,30]
[314985869,1708715490937,-500.0,0.00036682,2]
[314985870,1708715490948,-500.0,0.00036712,4]
[314985871,1708715490957,-500.49427415,0.00036712,4]
[314985872,1708715490966,-40247.11363075,0.00036719,15]
[314985873,1708715490975,-903.24,0.00036742,2]
[314985874,1708715490984,-150.03630934,0.00036777,2]
[314985875,1708715490993,-973.03156,0.00036785,2]
[314985876,1708715491003,-213.33,0.00036798,7]
[314985877,1708715491012,-500.0,0.00036822,10]
[314985878,1708715491021,-155.0,0.0003683,7]
[314985879,1708715491030,-500.0,0.00036834,2]
[314985880,1708715491040,-15051.9394674,0.0003689,3]
[314985881,1708715491049,-10000.0,0.0003689,3]
[314985882,1708715491059,-13998.81,0.000369,7]
[314985883,1708715491068,-531928.60576704,0.000369,30]
[314985884,1708715491077,-200.0,0.000369,10]
[314985885,1708715491086,-260.95699805,0.00036943,2]
[314985886,1708715491096,-489.58517937,0.00036986,7]
[314985887,1708715491105,-172.80035688,0.00036986,7]
[314985888,1708715491115,-197.17798357,0.00036986,7]
[314985889,1708715491124,-150.0,0.00036986,7]
[314985890,1708715491133,-150.0,0.00036986,7]
[314985891,1708715491143,-150.0,0.00036986,7]
[314985892,1708715491152,-150.0,0.00036986,7]
[314985893,1708715491161,-151.40858974,0.00036986,7]
[314985894,1708715491170,-150.0,0.00036986,7]
[314985895,1708715491179,-196.59845113,0.00036986,7]
[314985896,1708715491189,-150.0,0.00036986,7]
[314985897,1708715491199,-150.0,0.00036986,7]
[314985898,1708715491208,-500.0,0.00036986,4]
[314985899,1708715491218,-666.0,0.00036986,2]
[314985900,1708715491227,-150.0,0.00036986,2]
[314985901,1708715491236,-300.0,0.00036986,7]
[314985902,1708715491245,-450.0,0.00036986,12]
[314985903,1708715491254,-600.0,0.00036986,17]
[314985904,1708715491263,-750.0,0.00036986,22]
[314985905,1708715491273,-900.0,0.00036986,27]
[314985906,1708715491281,-1175.67747776,0.00036986,32]
[314985907,1708715491291,-500.0,0.00036986,2]
[314985908,1708715491301,-1000.0,0.00037,7]
[314985909,1708715491310,-5710.62,0.00037,16]
[314985910,1708715491320,-1000.0,0.00037,6]
[314985911,1708715491329,-1000.0,0.00037,6]
[314985912,1708715491337,-519.51178632,0.00037,15]
[314985913,1708715491347,-150.0,0.00037,2]
[314985914,1708715491356,-4000.0,0.00037,12]
[314985915,1708715491365,-1591.61103485,0.00037,21]
[314985916,1708715491376,-900.0,0.00037,38]
[314985917,1708715491385,-1000.0,0.00037,2]
[314985918,1708715491394,-13603.67,0.00037,7]
[314985919,1708715491404,-8800.0,0.00037,10]
[314985920,1708715491414,-300.0,0.00037,14]
[314985921,1708715491423,-10044.05,0.00037,7]
[314985922,1708715491433,-45134.86255547,0.00037,20]
[314985923,1708715491443,-2000.0,0.00037,11]
[314985924,1708715491453,-499.999999,0.00037,2]
[314985925,1708715491463,-1050.0,0.00037,3]
[314985926,1708715491473,-8000.0,0.00037,2]
[314985927,1708715491483,-489.58517937,0.00037027,7]
[314985928,1708715491493,-172.80035688,0.00037027,7]
[314985929,1708715491502,-152.0,0.00037033,16]
[314985930,1708715491511,-150.03630934,0.00037043,2]
[314985931,1708715491521,-150.0,0.00037047,7]
[314985932,1708715491531,-150.0,0.00037059,2]
[314985933,1708715491540,-489.58517937,0.00037069,7]
[314985934,1708715491550,-172.80035688,0.00037069,7]
[314985935,1708715491560,-150.0,0.00037075,7]
[314985936,1708715491569,-10000.0,0.00037075,2]
[314985937,1708715491579,-150.0,0.00037083,7]
[314985938,1708715491588,-153.39,0.000371,3]
[314985939,1708715491598,-153.39,0.000371,3]
[314985940,1708715491607,-153.39,0.000371,3]
[314985941,1708715491617,-153.39,0.000371,3]
[314985942,1708715491627,-153.39,0.000371,3]
[314985943,1708715491637,-153.39,0.000371,3]
[314985944,1708715491646,-153.39,0.000371,3]
[314985945,1708715491655,-153.39,0.000371,3]
[314985946,1708715491664,-153.39,0.000371,3]
[314985947,1708715491674,-153.39,0.000371,3]
[314985948,1708715491683,-153.39,0.000371,3]
[314985949,1708715491693,-153.39,0.000371,3]
[314985950,1708715491702,-153.39,0.000371,3]
[314985951,1708715491711,-153.39,0.000371,3]
[314985952,1708715491721,-153.39,0.000371,3]
[314985953,1708715491730,-153.39,0.000371,3]
[314985954,1708715491739,-153.39,0.000371,3]
[314985955,1708715491749,-153.39,0.000371,3]
[314985956,1708715491759,-153.39,0.000371,3]
[314985957,1708715491769,-153.39,0.000371,3]
[314985958,1708715491778,-153.39,0.000371,3]
[314985959,1708715491787,-153.39,0.000371,3]
[314985960,1708715491798,-153.39,0.000371,3]
[314985961,1708715491808,-153.39,0.000371,3]
[314985962,1708715491817,-7841.03,0.000371,3]
[314985963,1708715491828,-7841.03,0.000371,3]
[314985964,1708715491838,-7841.03,0.000371,3]
[314985965,1708715491849,-7841.03,0.000371,3]
[314985966,1708715491859,-7841.03,0.000371,3]
[314985967,1708715491871,-7841.03,0.000371,3]
[314985968,1708715491887,-7841.03,0.000371,3]
[314985969,1708715491898,-7841.03,0.000371,3]
[314985970,1708715491907,-7841.03,0.000371,3]
[314985971,1708715491917,-7841.03,0.000371,3]
[314985972,1708715491927,-7841.03,0.000371,3]
[314985973,1708715491936,-7841.03,0.000371,3]
[314985974,1708715491946,-7841.03,0.000371,3]
[314985975,1708715491955,-7841.03,0.000371,3]
[314985976,1708715491964,-7841.03,0.000371,3]
[314985977,1708715491974,-7841.03,0.000371,3]
[314985978,1708715491984,-7841.03,0.000371,3]
[314985979,1708715491994,-7841.03,0.000371,3]
[314985980,1708715492003,-7841.03,0.000371,3]
[314985981,1708715492013,-7841.03,0.000371,3]
[314985982,1708715492023,-150.0,0.00037108,7]
[314985983,1708715492033,-970.69488827,0.0003711,7]
[314985984,1708715492042,-489.58517937,0.0003711,7]
[314985985,1708715492053,-172.80035688,0.0003711,7]
[314985986,1708715492062,-2500.0,0.00037111,2]
[314985987,1708715492072,-160.0,0.0003713,7]
[314985988,1708715492081,-500.0,0.00037139,2]
[314985989,1708715492090,-489.58517937,0.00037152,7]
[314985990,1708715492101,-172.80035688,0.00037152,7]
[314985991,1708715492111,-150.0,0.00037164,7]
[314985992,1708715492121,-150.0,0.00037164,7]
[314985993,1708715492131,-150.0,0.0003717,7]
[314985994,1708715492140,-150.0,0.00037181,7]
[314985995,1708715492150,-489.58517937,0.00037193,7]
[314985996,1708715492159,-172.80035688,0.00037193,7]
[314985997,1708715492169,-1012.52764103,0.000372,4]
[314985998,1708715492178,-13998.81,0.000372,7]
[314985999,1708715492188,-150.0,0.00037203,2]
[314986000,1708715492198,-260.95699805,0.00037228,2]
[314986001,1708715492207,-150.0,0.00037231,7]
[314986002,1708715492217,-489.58517937,0.00037235,7]
[314986003,1708715492227,-172.80035688,0.00037235,7]
[314986004,1708715492237,-150.0,0.00037242,7]
[314986005,1708715492247,-150.0,0.00037254,7]
[314986006,1708715492257,-500.0,0.0003726,4]
[314986007,1708715492266,-489.58517937,0.00037276,7]
[314986008,1708715492276,-172.80035688,0.00037276,7]
[314986009,1708715492285,-150.0,0.00037279,7]
[314986010,1708715492295,-500.0,0.00037291,2]
[314986011,1708715492305,-150.0,0.00037292,7]
[314986012,1708715492315,-150.03630934,0.00037308,2]
[314986013,1708715492325,-489.58517937,0.00037318,7]
[314986014,1708715492334,-172.80035688,0.00037318,7]
[314986015,1708715492343,-150.0,0.00037343,7]
[314986016,1708715492354,-150.0,0.00037343,7]
[314986017,1708715492364,-150.0,0.00037354,7]
[314986018,1708715492373,-489.58517937,0.00037359,7]
[314986019,1708715492383,-172.80035688,0.00037359,7]
[314986020,1708715492392,-500.0,0.0003737,10]
[314986021,1708715492402,-500.0,0.0003737,10]
[314986022,1708715492412,-150.0,0.00037377,7]
[314986023,1708715492421,-489.58517937,0.00037401,7]
[314986024,1708715492430,-172.80035688,0.00037401,7]
[314986025,1708715492440,-150.0,0.00037415,7]
[314986026,1708715492450,-150.0,0.00037432,7]
[314986027,1708715492459,-489.58517937,0.00037442,7]
[314986028,1708715492469,-172.80035688,0.00037442,7]
[314986029,1708715492478,-500.0,0.00037443,2]
[314986030,1708715492488,-150.0,0.00037475,7]
[314986031,1708715492497,-150.0,0.00037476,7]
[314986032,1708715492507,-489.58517937,0.00037484,7]
[314986033,1708715492517,-172.80035688,0.00037484,7]
[314986034,1708715492527,-150.0,0.00037499,7]
[314986035,1708715492537,-960.0,0.000375,7]
[314986036,1708715492546,-1484.34134529,0.000375,6]
[314986037,1708715492556,-1000.0,0.000375,12]
[314986038,1708715492566,-800.0,0.000375,10]
[314986039,1708715492575,-1500.0,0.000375,7]
[314986040,1708715492585,-6210.37302819,0.000375,2]
[314986041,1708715492595,-6200.0,0.000375,7]
[314986042,1708715492606,-260.95699805,0.00037513,2]
[314986043,1708715492616,-150.0,0.00037522,7]
[314986044,1708715492626,-150.0,0.00037522,7]
[314986045,1708715492635,-489.58517937,0.00037525,7]
[314986046,1708715492644,-172.80035688,0.00037525,7]
[314986047,1708715492654,-500.0,0.00037534,4]
[314986048,1708715492663,-150.0,0.00037538,7]
[314986049,1708715492673,-312.44,0.0003754,2]
[314986050,1708715492683,-489.58517937,0.00037567,7]
[314986051,1708715492692,-172.80035688,0.00037567,7]
[314986052,1708715492702,-150.0,0.00037573,7]
[314986053,1708715492711,-150.03630934,0.00037573,2]
[314986054,1708715492721,-4068.15169545,0.0003759,2]
[314986055,1708715492730,-500.0,0.00037595,2]
[314986056,1708715492739,-150.0,0.00037599,7]
[314986057,1708715492749,-672.0,0.00037599,2]
[314986058,1708715492758,-3457.5518581,0.000376,8]
[314986059,1708715492768,-489.58517937,0.00037608,7]
[314986060,1708715492778,-172.80035688,0.00037608,7]
[314986061,1708715492787,-150.0,0.00037611,7]
[314986062,1708715492797,-171.28255708,0.00037619,2]
[314986063,1708715492806,-164.68254267,0.00037619,2]
[314986064,1708715492815,-249.0,0.0003763,7]
[314986065,1708715492825,-150.0,0.00037635,2]
[314986066,1708715492835,-489.58517937,0.0003765,7]
[314986067,1708715492845,-172.80035688,0.0003765,7]
[314986068,1708715492855,-5013.18,0.0003766,2]
[314986069,1708715492866,-150.0,0.0003766,7]
[314986070,1708715492879,-150.0,0.0003767,7]
[314986071,1708715492889,-150.0,0.0003767,7]
[314986072,1708715492899,-180.0,0.00037671,2]
[314986073,1708715492909,-152.0,0.00037674,17]
[314986074,1708715492920,-489.58517937,0.00037691,7]
[314986075,1708715492930,-172.80035688,0.00037691,7]
[314986076,1708715492940,-150.0,0.000377,7]
[314986077,1708715492950,-150.0,0.000377,7]
[314986078,1708715492961,-150.0,0.00037722,7]
[314986079,1708715492971,-489.58517937,0.00037733,7]
[314986080,1708715492981,-172.80035688,0.00037733,7]
[314986081,1708715492991,-500.0,0.00037747,2]
[314986082,1708715493001,-323.91,0.00037747,2]
[314986083,1708715493010,-182.92,0.00037747,2]
[314986084,1708715493020,-8488.47132509,0.00037753,2]
[314986085,1708715493030,-150.0,0.00037756,7]
[314986086,1708715493039,-150.0,0.00037768,7]
[314986087,1708715493049,-489.58517937,0.00037774,7]
[314986088,1708715493059,-172.80035688,0.00037774,7]
[314986089,1708715493069,-150.0,0.0003778,10]
[314986090,1708715493078,-150.0,0.00037783,7]
[314986091,1708715493088,-150.0,0.0003779,7]
[314986092,1708715493098,-260.95699805,0.00037798,2]
[314986093,1708715493107,-500.0,0.00037808,4]
[314986094,1708715493117,-489.58517937,0.00037816,7]
[314986095,1708715493127,-172.80035688,0.00037816,7]
[314986096,1708715493137,-311.0,0.00037829,2]
[314986097,1708715493146,-238.659,0.00037829,2]
[314986098,1708715493156,-150.03630934,0.00037838,2]
[314986099,1708715493166,-5013.18,0.0003784,2]
[314986100,1708715493175,-150.0,0.00037844,7]
[314986101,1708715493185,-489.58517937,0.00037857,7]
[314986102,1708715493195,-172.80035688,0.00037857,7]
[314986103,1708715493205,-150.0,0.00037866,7]
[314986104,1708715493215,-150.0,0.00037879,7]
[314986105,1708715493225,-150.0,0.00037879,7]
[314986106,1708715493235,-489.58517937,0.00037899,7]
[314986107,1708715493244,-172.80035688,0.00037899,7]